bitfinex-derivatives/quotes_BTCF0:USTF0_20250912
["timestamp","ask_amount","ask_price","bid_price","bid_amount"]
[1757642963758,0.00400001,115630.0,115620.0,1.83996295]
[1757642963960,0.00400001,115630.0,115620.0,1.76225068]
[1757642964258,0.00400001,115630.0,115620.0,1.84870918]
[1757642964461,0.00400001,115630.0,115620.0,1.7251957]
[1757642964658,0.00400001,115630.0,115620.0,1.67950362]
[1757642964863,0.00400001,115630.0,115620.0,1.80291779]
[1757642965467,0.00400001,115630.0,115620.0,1.7251957]
[1757642968571,0.13879417,115660.0,115650.0,0.03575]
[1757642968777,0.26220834,115660.0,115650.0,0.03575]
[1757642969063,0.27075489,115660.0,115650.0,0.01284]
[1757642969373,0.52075489,115660.0,115640.0,0.01284]
[1757642969573,0.13879417,115650.0,115640.0,0.57575]
[1757642969762,0.38879417,115650.0,115640.0,0.57575]
[1757642970971,0.39279417,115650.0,115640.0,0.57675]
[1757642972270,0.39579417,115650.0,115640.0,0.57675]
[1757642972872,0.27238,115650.0,115640.0,0.57675]
[1757642973073,0.39579417,115650.0,115640.0,0.57675]
[1757642975373,0.27238,115650.0,115640.0,0.57675]
[1757642975572,0.39579417,115650.0,115640.0,0.57675]
[1757642978071,0.007,115650.0,115640.0,1.07357834]
[1757642978367,0.21751868,115690.0,115680.0,0.03575]
[1757642978574,0.22616354,115690.0,115680.0,0.03575]
[1757642978786,0.22616354,115690.0,115670.0,0.01284]
[1757642979077,0.14674417,115680.0,115670.0,0.36575]
[1757642980375,0.15074417,115680.0,115670.0,0.03675]
[1757642980674,0.15374417,115680.0,115670.0,0.03675]
[1757642984075,0.27715834,115680.0,115670.0,0.03675]
[1757642984776,0.15374417,115680.0,115670.0,0.03675]
[1757642986778,0.15374417,115680.0,115670.0,0.26675]
[1757642987371,0.03033,115680.0,115670.0,0.26675]
[1757642987571,0.15374417,115680.0,115670.0,0.26675]
[1757642988175,0.15374417,115680.0,115670.0,0.03675]
[1757642988368,0.15374417,115680.0,115670.0,0.59675]
[1757642988569,0.15374417,115680.0,115670.0,0.03675]
[1757642988770,0.15374417,115680.0,115670.0,0.23675]
[1757642990484,0.03033,115680.0,115670.0,0.23675]
[1757642990672,0.15374417,115680.0,115670.0,0.23675]
[1757642993779,0.03033,115680.0,115670.0,0.23675]
[1757642993982,0.15374417,115680.0,115670.0,0.23675]
[1757642994782,0.15374417,115680.0,115670.0,0.03675]
[1757642994990,0.27715834,115680.0,115670.0,0.03675]
[1757642995483,0.53115834,115680.0,115670.0,0.001]
[1757642995679,0.65457251,115680.0,115670.0,0.001]
[1757642996283,0.02301,115660.0,115650.0,0.03388]
[1757642996483,1.08709774,115660.0,115650.0,0.03388]
[1757642996982,0.0431894,115660.0,115650.0,0.03388]
[1757642997184,1.08705774,115660.0,115650.0,0.03388]
[1757642997482,1.08905774,115660.0,115650.0,0.03388]
[1757642998883,0.29201774,115660.0,115650.0,0.03388]
[1757642999182,1.08909774,115660.0,115650.0,0.03388]
[1757643001080,1.08905774,115660.0,115650.0,0.03388]
[1757643001386,0.0451894,115660.0,115650.0,0.36729417]
[1757643001584,0.0221794,115660.0,115650.0,0.36729417]
[1757643002174,0.0451894,115660.0,115650.0,0.36729417]
[1757643002881,0.0451894,115660.0,115650.0,0.63149417]
[1757643004394,0.0221794,115660.0,115650.0,1.10501626]
[1757643007084,0.0221794,115660.0,115650.0,1.02729417]
[1757643007587,0.16860357,115660.0,115650.0,0.65388]
[1757643007893,0.0451894,115660.0,115650.0,0.65388]
[1757643008094,0.0221794,115660.0,115650.0,0.77729417]
[1757643008593,0.0451894,115660.0,115650.0,0.77729417]
[1757643009682,0.0451894,115660.0,115650.0,0.73160209]
[1757643009881,0.0451894,115660.0,115650.0,0.85501626]
[1757643010089,0.0221794,115660.0,115650.0,0.85501626]
[1757643010484,0.0451894,115660.0,115650.0,0.85501626]
[1757643010893,0.16860357,115660.0,115650.0,0.65388]
[1757643011089,0.16860357,115660.0,115650.0,0.73160863]
[1757643011288,0.54201774,115660.0,115650.0,0.03388]
[1757643011485,0.54201774,115660.0,115650.0,0.07772863]
[1757643011989,0.54201774,115660.0,115650.0,0.09876863]
[1757643012994,0.2951894,115660.0,115650.0,0.11217863]
[1757643013388,0.41860357,115660.0,115650.0,0.11217863]
[1757643013993,0.41860357,115660.0,115650.0,0.32217863]
[1757643014194,0.0451894,115660.0,115650.0,0.32217863]
[1757643014494,0.0221794,115660.0,115650.0,0.4455928]
[1757643014696,0.0451894,115660.0,115650.0,0.51786417]
[1757643015392,0.0451894,115660.0,115650.0,0.39445]
[1757643016188,0.0451894,115660.0,115650.0,0.4721784]
[1757643016385,0.0221794,115660.0,115650.0,0.59559257]
[1757643016580,0.0221794,115660.0,115650.0,0.84559257]
[1757643017794,0.0221794,115660.0,115650.0,1.10979257]
[1757643020996,0.0221794,115660.0,115650.0,1.19622877]
[1757643021585,0.0221794,115660.0,115650.0,1.99294877]
[1757643022292,0.0221794,115660.0,115650.0,1.99290877]
[1757643023594,0.0221794,115660.0,115650.0,1.19622877]
[1757643023991,0.0221794,115660.0,115650.0,1.99290877]
[1757643025300,0.0221794,115660.0,115650.0,1.10979257]
[1757643025501,0.0221794,115660.0,115650.0,1.90643257]
[1757643026402,0.2072236,115660.0,115650.0,1.9680626]
[1757643026795,0.4143878,115660.0,115650.0,0.7363784]
[1757643027198,0.6643878,115660.0,115650.0,0.3763784]
[1757643029598,0.6643878,115660.0,115650.0,0.1121784]
[1757643029803,1.648992,115660.0,115650.0,0.0777284]
[1757643030206,1.648992,115660.0,115640.0,0.0905684]
[1757643030405,0.3922084,115650.0,115630.0,0.12220014]
[1757643030603,0.02212,115650.0,115640.0,0.3833284]
[1757643030808,0.0442994,115660.0,115650.0,0.03447]
[1757643031002,0.2293436,115660.0,115650.0,0.29722716]
[1757643031201,0.2293436,115660.0,115650.0,0.2195142]
[1757643031404,0.2293436,115660.0,115650.0,0.29722978]
[1757643032008,0.2283436,115660.0,115650.0,0.29722978]
[1757643032205,0.2293436,115660.0,115650.0,0.29722978]
[1757643032811,0.2273436,115660.0,115650.0,0.29622978]
[1757643033011,0.2283436,115660.0,115650.0,0.29622978]
[1757643033512,0.2303436,115660.0,115650.0,0.29622978]
[1757643033702,0.2303436,115660.0,115650.0,0.11118558]
[1757643034109,0.2303436,115660.0,115650.0,0.29622978]
[1757643035414,0.2303436,115660.0,115650.0,0.11118558]
[1757643035613,0.2303436,115660.0,115650.0,0.29622978]
[1757643036006,0.2303436,115660.0,115650.0,0.77622978]
[1757643036612,0.2303436,115660.0,115650.0,0.29622978]
[1757643038413,0.0452994,115660.0,115650.0,0.86622978]
[1757643038615,0.2303436,115660.0,115650.0,0.86622978]
[1757643038916,0.2303436,115660.0,115650.0,0.64118558]
[1757643039214,0.2303436,115660.0,115650.0,0.77622978]
[1757643040404,0.2303436,115660.0,115650.0,0.11118558]
[1757643040604,0.2303436,115660.0,115650.0,0.29622978]
[1757643041908,0.2303436,115660.0,115650.0,0.03347]
[1757643042315,0.4153878,115660.0,115650.0,0.2185142]
[1757643043515,0.2303436,115660.0,115650.0,0.2185142]
[1757643044014,0.2303436,115660.0,115650.0,0.29622978]
[1757643046916,0.4153878,115660.0,115650.0,0.29622978]
[1757643048215,0.4153878,115660.0,115650.0,0.11118558]
[1757643048417,0.4153878,115660.0,115650.0,0.29622978]
[1757643049317,0.4153878,115660.0,115650.0,0.11118558]
[1757643051720,0.0452994,115660.0,115650.0,0.11118558]
[1757643051921,1.2115878,115660.0,115650.0,0.11118558]
[1757643052720,0.4153878,115660.0,115650.0,0.11118558]
[1757643052916,1.2115478,115660.0,115650.0,0.29622978]
[1757643055225,1.2115478,115660.0,115650.0,0.11118558]
[1757643057018,1.2115478,115660.0,115650.0,0.03347]
[1757643058035,0.0452994,115660.0,115650.0,0.03347]
[1757643058236,1.2114678,115660.0,115650.0,0.03347]
[1757643058437,1.2114678,115660.0,115650.0,0.11118558]
[1757643058833,1.2114678,115660.0,115650.0,0.03347]
[1757643060127,0.8413794,115660.0,115650.0,0.03347]
[1757643060329,1.2114678,115660.0,115650.0,0.03347]
[1757643061641,0.0452994,115660.0,115650.0,0.03347]
[1757643061939,0.9070278,115660.0,115650.0,0.03347]
[1757643062137,0.9070278,115660.0,115650.0,0.2185142]
[1757643062840,0.0452994,115660.0,115650.0,0.2185142]
[1757643063042,0.5332794,115660.0,115650.0,0.2185142]
[1757643063240,0.7183236,115660.0,115650.0,0.2185142]
[1757643064330,0.7183236,115660.0,115650.0,0.7285142]
[1757643064740,0.7183236,115660.0,115650.0,0.2185142]
[1757643065340,0.7183236,115660.0,115650.0,0.6985142]
[1757643068343,0.5332794,115660.0,115650.0,0.6985142]
[1757643068542,0.7183236,115660.0,115650.0,0.6985142]
[1757643069346,0.7183236,115660.0,115650.0,0.51347]
[1757643069536,0.7183236,115660.0,115650.0,0.2185142]
[1757643069732,0.9033678,115660.0,115650.0,0.7685142]
[1757643069939,0.9033678,115660.0,115650.0,0.60347]
[1757643070338,0.9033678,115660.0,115650.0,0.11118558]
[1757643073843,0.9033678,115660.0,115640.0,0.38623014]
[1757643073844,1.342412,115660.0,115640.0,0.38623014]
[1757643074147,0.3926684,115650.0,115640.0,0.29917]
[1757643074337,0.3926684,115650.0,115630.0,0.09990416]
[1757643074538,1.1883884,115640.0,115630.0,0.15270872]
[1757643074939,1.1883884,115640.0,115630.0,0.14393014]
[1757643075845,1.4383884,115640.0,115630.0,0.14393014]
[1757643076146,1.44714385,115640.0,115630.0,0.14393014]
[1757643076346,1.4383884,115640.0,115630.0,0.14393014]
[1757643076546,1.4383884,115640.0,115630.0,0.03514]
[1757643077142,1.4433884,115640.0,115630.0,0.0777643]
[1757643077341,1.4433884,115640.0,115630.0,0.0787643]
[1757643078146,1.46347488,115640.0,115630.0,0.0787643]
[1757643078445,1.46347488,115640.0,115630.0,0.003]
[1757643079444,1.46347488,115640.0,115630.0,0.0807643]
[1757643080145,1.47221322,115640.0,115630.0,0.0807643]
[1757643082345,0.29266648,115640.0,115630.0,0.1024943]
[1757643082550,1.06879488,115640.0,115630.0,0.03828]
[1757643083553,0.66275488,115640.0,115630.0,0.03828]
[1757643083847,1.45843488,115640.0,115630.0,0.03828]
[1757643084454,0.66275488,115640.0,115630.0,0.03828]
[1757643084646,1.45839488,115640.0,115630.0,0.03828]
[1757643088155,1.45839488,115640.0,115630.0,0.1160443]
[1757643088347,1.33518198,115640.0,115630.0,0.1160443]
[1757643088747,1.21174423,115640.0,115630.0,0.1160443]
[1757643089554,1.33518198,115640.0,115630.0,0.03828]
[1757643090351,1.33518198,115640.0,115630.0,0.1160443]
[1757643090651,0.53954198,115640.0,115630.0,0.1160443]
[1757643090849,1.30842198,115640.0,115630.0,0.1160443]
[1757643091244,1.18498423,115640.0,115630.0,0.1160443]
[1757643092355,1.30842198,115640.0,115630.0,0.1160443]
[1757643093055,1.06154648,115640.0,115630.0,0.1160443]
[1757643093256,1.30842198,115640.0,115630.0,0.1160443]
[1757643093957,1.30842198,115640.0,115630.0,0.03828]
[1757643096960,1.06154648,115640.0,115630.0,0.03828]
[1757643097161,1.30842198,115640.0,115630.0,0.03828]
[1757643097461,1.30842198,115640.0,115630.0,0.11599055]
[1757643099262,1.05842198,115640.0,115630.0,0.11599055]
[1757643101562,1.05842198,115640.0,115630.0,0.03828]
[1757643101862,1.05842198,115640.0,115630.0,0.14707014]
[1757643102064,0.81154648,115640.0,115630.0,0.14707014]
[1757643102362,1.05842198,115640.0,115630.0,0.11605834]
[1757643103365,1.05842198,115640.0,115630.0,0.03828]
[1757643104965,1.05842198,115640.0,115630.0,0.11605834]
[1757643105568,1.05842198,115640.0,115630.0,0.03828]
[1757643106067,1.05842198,115640.0,115630.0,0.11605834]
[1757643106267,1.05842198,115640.0,115630.0,0.03828]
[1757643116876,1.08478198,115640.0,115630.0,0.03828]
[1757643117777,1.08478198,115640.0,115630.0,0.11605834]
[1757643117978,1.08478198,115640.0,115630.0,0.03828]
[1757643123086,0.04266648,115640.0,115630.0,0.33171775]
[1757643123274,0.45330648,115640.0,115630.0,0.98171775]
[1757643123475,0.04266648,115640.0,115630.0,0.98171775]
[1757643123676,0.45816648,115640.0,115630.0,1.05949609]
[1757643123880,0.02008648,115640.0,115630.0,0.98171775]
[1757643125092,0.045,115630.0,115600.0,0.16884472]
[1757643125378,0.26680059,115610.0,115600.0,0.15571472]
[1757643125583,1.12851834,115610.0,115590.0,0.01313]
[1757643125782,1.87031325,115600.0,115590.0,0.01313]
[1757643126177,1.75566607,115600.0,115590.0,0.01313]
[1757643126583,1.9968755,115600.0,115590.0,0.01313]
[1757643127181,1.9978755,115600.0,115590.0,0.01913]
[1757643127780,1.7478755,115600.0,115590.0,0.01913]
[1757643128081,1.7478755,115600.0,115590.0,0.04195]
[1757643128273,1.7478755,115600.0,115590.0,0.04595]
[1757643128672,0.2478755,115600.0,115590.0,0.04595]
[1757643128874,0.31752231,115600.0,115590.0,0.04595]
[1757643130788,0.2478755,115600.0,115590.0,0.04595]
[1757643131288,0.2478755,115600.0,115590.0,0.27595]
[1757643132593,0.001,115600.0,115590.0,0.27595]
[1757643132984,0.2478755,115600.0,115590.0,0.24595]
[1757643139494,0.12443775,115600.0,115590.0,0.49595]
[1757643139997,0.12443775,115600.0,115590.0,0.60465373]
[1757643141194,0.12443775,115600.0,115590.0,0.49595]
[1757643141888,0.2478755,115600.0,115590.0,0.49595]
[1757643142088,0.2478755,115600.0,115590.0,0.60465373]
[1757643142288,0.001,115600.0,115590.0,0.60465373]
[1757643142488,0.12443775,115600.0,115590.0,0.49595]
[1757643144193,0.2478755,115600.0,115590.0,0.49595]
[1757643148283,0.37156056,115600.0,115590.0,0.49595]
[1757643149093,0.37156056,115600.0,115590.0,0.24595]
[1757643149592,0.80684084,115600.0,115590.0,0.28595]
[1757643149792,0.80684084,115600.0,115590.0,0.04595]
[1757643150193,0.80684084,115600.0,115590.0,0.28595]
[1757643150694,0.62156056,115600.0,115590.0,0.28595]
[1757643154797,0.251,115600.0,115590.0,0.28595]
[1757643154998,0.62156056,115600.0,115590.0,0.28595]
[1757643159414,0.37156056,115600.0,115590.0,0.28595]
[1757643163119,0.37156056,115600.0,115590.0,0.24595]
[1757643168125,0.001,115600.0,115590.0,0.24595]
[1757643168325,0.37156056,115600.0,115590.0,0.24595]
[1757643176532,0.001,115600.0,115590.0,0.24595]
[1757643176829,0.37156056,115600.0,115590.0,0.24595]
[1757643179633,0.37156056,115600.0,115590.0,0.96059]
[1757643181728,0.37156056,115600.0,115590.0,1.04115]
[1757643183934,0.37156056,115600.0,115590.0,1.04111]
[1757643185829,0.37156056,115600.0,115590.0,0.24595]
[1757643186035,0.37156056,115600.0,115590.0,1.04111]
[1757643186234,0.37156056,115600.0,115590.0,0.25595]
[1757643186434,0.37156056,115600.0,115590.0,1.05107]
[1757643186636,0.37156056,115600.0,115590.0,0.25595]
[1757643186836,0.37156056,115600.0,115590.0,1.00943]
[1757643187338,0.001,115600.0,115590.0,1.00943]
[1757643187635,0.37156056,115600.0,115590.0,1.00943]
[1757643189939,0.37156056,115600.0,115590.0,1.05103]
[1757643191039,0.37156056,115600.0,115590.0,1.05099]
[1757643192939,0.37156056,115600.0,115590.0,0.25595]
[1757643193241,0.37156056,115600.0,115590.0,1.05095]
[1757643193740,0.37156056,115600.0,115590.0,0.25595]
[1757643193940,0.37156056,115600.0,115590.0,0.27595]
[1757643194438,0.001,115600.0,115590.0,0.27595]
[1757643194638,0.37156056,115600.0,115590.0,0.27595]
[1757643195750,0.37156056,115600.0,115590.0,1.07095]
[1757643195937,0.001,115600.0,115590.0,0.27595]
[1757643196138,0.37156056,115600.0,115590.0,1.07091]
[1757643196442,0.37156056,115600.0,115590.0,0.27595]
[1757643196842,0.37156056,115600.0,115590.0,1.07091]
[1757643197044,0.37156056,115600.0,115590.0,0.27595]
[1757643202952,0.001,115600.0,115590.0,0.27595]
[1757643203252,0.37156056,115600.0,115590.0,0.27595]
[1757643209456,0.37156056,115600.0,115590.0,0.38465373]
[1757643209949,0.37156056,115600.0,115590.0,0.27595]
[1757643210354,0.24806696,115600.0,115590.0,0.27595]
[1757643218762,0.24806696,115600.0,115590.0,0.38465373]
[1757643219160,0.24806696,115600.0,115590.0,0.27595]
[1757643220462,0.24806696,115600.0,115590.0,1.07051]
[1757643223073,0.24806696,115600.0,115590.0,1.07047]
[1757643233686,0.001,115600.0,115590.0,1.07047]
[1757643233887,0.24806696,115600.0,115590.0,1.07047]
[1757643234888,0.24806696,115600.0,115590.0,1.07023]
[1757643240589,0.24806696,115600.0,115590.0,0.27595]
[1757643240892,0.24806696,115600.0,115590.0,1.07011]
[1757643244688,0.24806696,115600.0,115590.0,1.07003]
[1757643244884,0.24806696,115600.0,115590.0,0.27595]
[1757643245098,0.24806696,115600.0,115590.0,1.06999]
[1757643246991,0.24806696,115600.0,115590.0,1.06995]
[1757643248893,0.24806696,115600.0,115590.0,0.27595]
[1757643250605,0.37160044,115600.0,115590.0,0.27595]
[1757643251295,0.24806696,115600.0,115590.0,0.27595]
[1757643255092,0.37160044,115600.0,115590.0,0.27595]
[1757643256104,0.37160044,115600.0,115590.0,0.26595]
[1757643256402,0.37160044,115600.0,115590.0,0.04595]
[1757643258209,0.37160044,115600.0,115590.0,0.27595]
[1757643258402,0.37160044,115600.0,115590.0,0.04595]
[1757643260307,0.24806696,115600.0,115590.0,0.04595]
[1757643266821,0.24806696,115600.0,115590.0,0.26595]
[1757643267009,0.24806696,115600.0,115590.0,0.04595]
[1757643270321,0.24806696,115600.0,115590.0,0.26595]
[1757643270523,0.24806696,115600.0,115590.0,0.04595]
[1757643272423,0.55699069,115600.0,115590.0,0.04595]
[1757643273219,0.55699069,115600.0,115590.0,0.02313]
[1757643273428,1.60047069,115600.0,115590.0,0.02313]
[1757643274123,1.60043069,115600.0,115590.0,0.02313]
[1757643274813,1.59943069,115600.0,115590.0,0.02113]
[1757643275014,1.60043069,115600.0,115590.0,0.01713]
[1757643275327,1.60043069,115600.0,115590.0,0.02013]
[1757643276426,1.60043069,115600.0,115590.0,0.01913]
[1757643277126,0.80699069,115600.0,115580.0,0.01313]
[1757643277314,0.57631559,115590.0,115580.0,0.01313]
[1757643277824,0.82631559,115590.0,115570.0,0.01313]
[1757643278019,1.34939069,115580.0,115570.0,0.01313]
[1757643279115,1.34939069,115580.0,115570.0,0.01613]
[1757643279724,1.35039069,115580.0,115570.0,0.02213]
[1757643281624,0.55699069,115580.0,115570.0,0.02213]
[1757643281827,1.35039069,115580.0,115570.0,0.02213]
[1757643282430,0.55699069,115580.0,115570.0,0.02213]
[1757643282731,1.35035069,115580.0,115570.0,0.02213]
[1757643282932,0.55699069,115580.0,115570.0,0.02213]
[1757643283231,1.35035069,115580.0,115570.0,0.02213]
[1757643285628,0.55699069,115580.0,115570.0,0.02213]
[1757643285835,1.35031069,115580.0,115570.0,0.02213]
[1757643288337,0.55699069,115580.0,115570.0,0.02213]
[1757643288637,1.35031069,115580.0,115570.0,0.02213]
[1757643298738,0.55699069,115580.0,115570.0,0.02213]
[1757643298940,1.35015069,115580.0,115570.0,0.02213]
[1757643299341,0.55699069,115580.0,115570.0,0.02213]
[1757643299548,1.35011069,115580.0,115570.0,0.02213]
[1757643300745,0.79408,115580.0,115570.0,0.04407]
[1757643301052,1.16474046,115580.0,115570.0,0.06140412]
[1757643301342,0.18633023,115580.0,115570.0,0.49673435]
[1757643301546,0.83741023,115580.0,115570.0,0.31140412]
[1757643301746,0.001,115580.0,115570.0,0.31140412]
[1757643302542,0.37166046,115580.0,115570.0,0.31140412]
[1757643303946,0.001,115580.0,115570.0,0.31140412]
[1757643304144,0.37166046,115580.0,115570.0,0.31140412]
[1757643305046,0.001,115580.0,115570.0,0.83140412]
[1757643305346,0.18633023,115580.0,115570.0,0.83140412]
[1757643305542,0.001,115580.0,115570.0,0.83140412]
[1757643305748,0.18633023,115580.0,115570.0,1.01673435]
[1757643306047,0.001,115580.0,115570.0,1.01673435]
[1757643306445,0.18633023,115580.0,115570.0,0.83140412]
[1757643306646,0.37166046,115580.0,115570.0,0.83140412]
[1757643307039,0.001,115580.0,115570.0,0.83140412]
[1757643307341,0.37166046,115580.0,115570.0,0.83140412]
[1757643308143,0.001,115580.0,115570.0,0.83140412]
[1757643308348,0.37166046,115580.0,115570.0,0.83140412]
[1757643309248,0.001,115580.0,115570.0,0.83140412]
[1757643309450,0.37166046,115580.0,115570.0,0.83140412]
[1757643309650,0.001,115580.0,115570.0,0.83140412]
[1757643309850,0.37166046,115580.0,115570.0,0.83140412]
[1757643310045,0.001,115580.0,115570.0,0.83140412]
[1757643310349,0.37166046,115580.0,115570.0,0.83140412]
[1757643310552,0.37166046,115580.0,115570.0,0.89140412]
[1757643310753,0.37166046,115580.0,115570.0,0.86140412]
[1757643311247,0.001,115580.0,115570.0,1.04673435]
[1757643311549,0.18633023,115580.0,115570.0,1.04673435]
[1757643312245,0.001,115580.0,115570.0,1.04673435]
[1757643312444,0.18633023,115580.0,115570.0,0.51140412]
[1757643312646,0.18633023,115580.0,115570.0,0.69673435]
[1757643312951,0.18633023,115580.0,115570.0,1.10673435]
[1757643313152,0.001,115580.0,115570.0,0.92140412]
[1757643313650,0.18633023,115580.0,115570.0,0.27840412]
[1757643313849,0.18733023,115580.0,115570.0,0.45773435]
[1757643314049,0.002,115580.0,115570.0,0.27240412]
[1757643314250,0.37266046,115580.0,115570.0,0.27240412]
[1757643314641,0.37266046,115580.0,115570.0,0.34172999]
[1757643315646,0.37266046,115580.0,115570.0,0.12172999]
[1757643315843,0.002,115580.0,115570.0,0.71172999]
[1757643316044,0.002,115580.0,115570.0,0.82043372]
[1757643316246,0.002,115580.0,115570.0,1.00576395]
[1757643316551,0.18733023,115580.0,115570.0,0.54706022]
[1757643317048,0.18733023,115580.0,115570.0,0.36172999]
[1757643317452,0.18733023,115580.0,115570.0,0.54706022]
[1757643317647,0.18733023,115580.0,115570.0,0.36172999]
[1757643317853,0.18733023,115580.0,115570.0,0.54706022]
[1757643318350,0.002,115580.0,115570.0,0.54706022]
[1757643318549,0.18733023,115580.0,115570.0,0.30706022]
[1757643318754,0.002,115580.0,115570.0,0.87706022]
[1757643318956,0.18733023,115580.0,115570.0,0.87706022]
[1757643319156,0.18733023,115580.0,115570.0,0.69172999]
[1757643319344,0.18733023,115580.0,115570.0,0.87706022]
[1757643319542,0.18733023,115580.0,115570.0,0.86706022]
[1757643319849,0.18733023,115580.0,115570.0,0.80706022]
[1757643320858,0.18733023,115580.0,115570.0,0.62172999]
[1757643321246,0.18733023,115580.0,115570.0,0.80706022]
[1757643321555,0.18733023,115580.0,115570.0,0.62172999]
[1757643321749,0.18733023,115580.0,115570.0,0.80706022]
[1757643322250,0.18733023,115580.0,115570.0,0.62172999]
[1757643322652,0.18733023,115580.0,115570.0,0.80706022]
[1757643322954,0.18733023,115580.0,115570.0,0.62172999]
[1757643323155,0.18733023,115580.0,115570.0,0.80706022]
[1757643324048,0.002,115580.0,115570.0,0.62172999]
[1757643324258,0.18733023,115580.0,115570.0,0.80706022]
[1757643324856,0.18733023,115580.0,115570.0,0.62172999]
[1757643325251,0.37266046,115580.0,115570.0,0.55240412]
[1757643325554,0.37266046,115580.0,115570.0,0.25240412]
[1757643327258,0.37266046,115580.0,115570.0,0.23507]
[1757643327454,0.80799069,115580.0,115570.0,0.03507]
[1757643327659,0.62266046,115580.0,115570.0,0.03507]
[1757643328160,0.252,115580.0,115570.0,0.03507]
[1757643328360,0.62266046,115580.0,115570.0,0.03507]
[1757643330560,0.80799069,115580.0,115570.0,0.03507]
[1757643330861,1.60955069,115580.0,115570.0,0.03507]
[1757643331159,0.62266046,115580.0,115570.0,0.03507]
[1757643331360,1.42426046,115580.0,115570.0,0.03507]
[1757643332163,0.62266046,115580.0,115570.0,0.03507]
[1757643332366,1.30065996,115580.0,115570.0,0.03507]
[1757643332566,0.49917996,115580.0,115570.0,0.03507]
[1757643334959,1.30057996,115580.0,115570.0,0.03507]
[1757643339267,1.05057996,115580.0,115570.0,0.03507]
[1757643340574,1.05041996,115580.0,115570.0,0.03507]
[1757643340768,1.05009996,115580.0,115570.0,0.03507]
[1757643341971,1.17368994,115580.0,115570.0,0.03507]
[1757643342366,0.37276994,115580.0,115570.0,0.03507]
[1757643342565,1.17352994,115580.0,115570.0,0.03507]
[1757643347775,1.17352994,115580.0,115570.0,0.01313]
[1757643347972,0.37276994,115580.0,115570.0,0.01313]
[1757643348480,1.05676994,115580.0,115570.0,0.0357]
[1757643348778,0.37276994,115580.0,115570.0,0.0357]
[1757643348978,1.17268994,115580.0,115570.0,0.0357]
[1757643351694,1.17236994,115580.0,115570.0,0.0357]
[1757643351880,1.04877996,115580.0,115570.0,0.0357]
[1757643352384,1.17236994,115580.0,115570.0,0.0357]
[1757643353591,1.17220994,115580.0,115570.0,0.0357]
[1757643354887,1.04857996,115580.0,115570.0,0.0357]
[1757643356483,1.17216994,115580.0,115570.0,0.0357]
[1757643357395,0.8014,115580.0,115570.0,0.0357]
[1757643357594,1.17216994,115580.0,115570.0,0.0357]
[1757643358793,1.04857996,115580.0,115570.0,0.0357]
[1757643360197,0.24917996,115580.0,115570.0,0.0357]
[1757643360493,1.04793996,115580.0,115570.0,0.0357]
[1757643362585,1.17152994,115580.0,115570.0,0.0357]
[1757643365398,0.80076,115580.0,115570.0,0.0357]
[1757643365594,0.80076,115580.0,115570.0,0.01313]
[1757643365595,1.17152994,115580.0,115570.0,0.01313]
[1757643365794,1.42152994,115580.0,115560.0,0.01313]
[1757643365994,2.03276994,115570.0,115550.0,0.0127]
[1757643366199,1.17076994,115560.0,115550.0,0.0127]
[1757643366497,1.17076994,115560.0,115540.0,0.0127]
[1757643366695,0.12358998,115550.0,115540.0,0.0127]
[1757643367297,0.37076994,115550.0,115540.0,0.0127]
[1757643367604,0.24717996,115550.0,115540.0,0.0127]
[1757643367903,0.37076994,115550.0,115540.0,0.0137]
[1757643369799,1.74717996,115550.0,115540.0,0.0147]
[1757643370004,1.74817996,115550.0,115540.0,0.0147]
[1757643370204,1.87176994,115550.0,115540.0,0.0147]
[1757643370502,1.88055231,115550.0,115540.0,0.0147]
[1757643370699,2.13055231,115550.0,115540.0,0.002]
[1757643370895,2.13055231,115550.0,115530.0,0.01374]
[1757643371096,1.17088994,115540.0,115530.0,0.01374]
[1757643371297,1.17088994,115540.0,115520.0,0.01374]
[1757643371500,0.24717996,115530.0,115520.0,0.01374]
[1757643372905,1.04729996,115530.0,115520.0,0.03569]
[1757643373406,1.04729996,115530.0,115520.0,0.03769]
[1757643374207,1.04829996,115530.0,115520.0,0.03969]
[1757643374411,1.04821996,115530.0,115520.0,0.03969]
[1757643375910,1.04821996,115530.0,115520.0,0.01774]
[1757643376804,1.04801996,115530.0,115520.0,0.03969]
[1757643378211,1.04801996,115530.0,115520.0,0.01774]
[1757643378511,1.04801996,115530.0,115520.0,0.03969]
[1757643378712,0.001,115530.0,115520.0,0.28969]
[1757643378920,0.92418998,115530.0,115520.0,0.28969]
[1757643379906,0.12458998,115530.0,115520.0,0.28969]
[1757643380214,0.92418998,115530.0,115520.0,0.28969]
[1757643381914,0.8006,115530.0,115520.0,0.28969]
[1757643382104,0.92418998,115530.0,115520.0,0.28969]
[1757643382416,0.12458998,115530.0,115520.0,0.28969]
[1757643382615,0.92382998,115530.0,115520.0,0.28969]
[1757643383812,0.8002,115530.0,115520.0,0.28969]
[1757643384116,0.92358998,115530.0,115520.0,0.46969]
[1757643384518,0.12458998,115530.0,115520.0,0.44969]
[1757643384818,0.92402998,115530.0,115520.0,0.44969]
[1757643385317,0.80044,115530.0,115520.0,0.44969]
[1757643386613,0.001,115530.0,115520.0,0.57327998]
[1757643386820,0.001,115530.0,115520.0,0.56327998]
[1757643387018,0.54576,115530.0,115520.0,0.57327998]
[1757643388010,0.54576,115530.0,115520.0,0.41327998]
[1757643388210,0.54576,115530.0,115520.0,0.56327998]
[1757643388617,0.54576,115530.0,115520.0,0.41327998]
[1757643388919,0.54576,115530.0,115520.0,0.95327998]
[1757643389115,0.02030679,115540.0,115530.0,0.01345]
[1757643389315,0.79924,115540.0,115530.0,0.65962998]
[1757643389620,0.92282998,115550.0,115540.0,0.03604]
[1757643389819,0.92282998,115550.0,115540.0,0.19604]
[1757643390419,0.92270998,115550.0,115540.0,0.19504]
[1757643390626,0.92266998,115550.0,115540.0,0.19504]
[1757643390915,0.12458998,115550.0,115540.0,0.03604]
[1757643391218,0.92362998,115550.0,115540.0,0.03604]
[1757643391418,0.92362998,115550.0,115540.0,0.04466461]
[1757643391822,1.22362998,115550.0,115540.0,0.04466461]
[1757643392325,0.42458998,115550.0,115540.0,0.04566461]
[1757643392619,0.301,115550.0,115540.0,0.41925459]
[1757643392825,1.09964,115550.0,115540.0,0.95925459]
[1757643393008,1.09864,115550.0,115540.0,0.95925459]
[1757643393510,1.09964,115550.0,115540.0,0.96125459]
[1757643393716,0.301,115550.0,115540.0,0.96125459]
[1757643394416,0.301,115550.0,115540.0,1.20742923]